bitfinex/quotes_ETHUSD_20220202
["timestamp","ask_amount","ask_price","bid_price","bid_amount"]
[1643821277761,0.1629566,2667.5,2666.9,0.1874]
[1643821277967,0.00447125,2667.4,2666.9,0.1874]
[1643821278562,0.00447125,2667.4,2667.2,0.9419686]
[1643821278964,0.1629566,2667.5,2667.2,0.9419686]
[1643821278965,0.1629566,2667.5,2667.2,0.4419686]
[1643821279164,0.00447135,2667.3,2667.2,0.4419686]
[1643821279563,0.00447135,2667.3,2666.9,0.20597192]
[1643821280163,0.13502017,2667.7,2666.9,2.40784882]
[1643821280364,0.00447139,2667.2,2666.9,3.70784882]
[1643821280667,0.00447139,2667.2,2667.1,6.39841706]
[1643821280865,0.00447139,2667.2,2667.1,7.03581706]
[1643821281532,0.00447139,2667.2,2667.1,3.99841706]
[1643821281827,0.00508557,2667.3,2667.1,6.68166579]
[1643821282026,0.00508557,2667.3,2667.2,5.8874]
[1643821282326,0.00508557,2667.3,2667.2,6.3374]
[1643821282525,0.12903567,2667.7,2667.2,6.3374]
[1643821282729,0.0050855,2667.4,2667.2,6.15]
[1643821282926,0.0050855,2667.4,2667.3,5.36221539]
[1643821283727,0.12903567,2667.7,2667.3,5.68090311]
[1643821283926,0.00508542,2667.5,2667.3,5.38090311]
[1643821284763,0.00508542,2667.5,2667.3,5.36221539]
[1643821284964,0.30146249,2667.7,2667.3,5.36221539]
[1643821285163,0.00508496,2667.5,2667.3,5.38083112]
[1643821286262,0.12903567,2667.7,2667.3,5.38083112]
[1643821286462,0.00508496,2667.5,2667.3,5.38083112]
[1643821286862,0.00508496,2667.5,2667.4,6.15]
[1643821287063,0.00508496,2667.5,2667.4,8.54764677]
[1643821287263,0.00508496,2667.5,2667.4,9.54764677]
[1643821287465,0.00508496,2667.5,2667.4,7.33683]
[1643821287664,0.00508492,2667.6,2667.4,7.33683]
[1643821287865,0.00508492,2667.6,2667.4,6.33683]
[1643821288264,0.00508492,2667.6,2667.4,6.15]
[1643821288517,0.12903567,2667.7,2667.4,6.15]
[1643821288518,0.34782041,2667.7,2667.4,6.15]
[1643821288717,0.00443314,2667.6,2667.4,6.15]
[1643821289616,0.12903567,2667.7,2667.4,6.15]
[1643821289815,0.12903567,2667.7,2667.4,6.17011338]
[1643821290017,0.00443314,2667.6,2667.4,6.17011338]
[1643821290215,0.00443314,2667.6,2667.4,6.15]
[1643821290517,0.12903567,2667.7,2667.5,2.15]
[1643821290518,0.01216092,2667.7,2667.5,2.15]
[1643821290715,0.01216092,2667.7,2667.6,0.45]
[1643821292366,0.01216092,2667.7,2667.6,2.8]
[1643821293164,0.01216092,2667.7,2667.6,2.35]
[1643821293369,0.01216092,2667.7,2667.6,4.5]
[1643821294365,0.01216092,2667.7,2667.6,2.35]
[1643821295767,0.01216092,2667.7,2667.6,2.89]
[1643821296018,0.01216092,2667.7,2667.6,3.59178671]
[1643821296619,0.01216092,2667.7,2667.6,2.89]
[1643821297222,0.01216092,2667.7,2667.4,0.02057178]
[1643821297223,0.11102286,2667.7,2667.4,0.02057178]
[1643821297420,0.11102286,2667.7,2667.2,0.00509103]
[1643821297421,0.86442485,2667.6,2667.2,0.00509103]
[1643821297626,0.24158565,2668.0,2667.3,5.25]
[1643821297627,0.0012441,2667.5,2667.3,5.25]
[1643821297825,0.1874,2667.9,2667.8,0.01279182]
[1643821298023,0.1874,2667.9,2667.8,3.11274597]
[1643821298720,0.1874,2667.9,2667.8,4.06018858]
[1643821299122,0.59305573,2668.1,2667.8,4.06018858]
[1643821299783,0.03075228,2668.5,2668.0,0.18683]
[1643821299973,0.12903567,2668.8,2668.4,0.01252742]
[1643821300173,0.12903567,2668.8,2668.5,0.02497321]
[1643821300371,0.09886194,2669.3,2668.5,0.02497321]
[1643821300372,0.09886194,2669.3,2668.7,5.83683]
[1643821300574,0.09886194,2669.3,2669.2,3.46214626]
[1643821300769,0.09886194,2669.3,2669.2,4.32426362]
[1643821300970,0.11921427,2669.3,2669.2,0.87426362]
[1643821301371,0.11921427,2669.3,2669.2,0.86211736]
[1643821301870,0.28117739,2669.3,2669.2,0.86211736]
[1643821302269,0.09886194,2669.3,2669.2,3.56211736]
[1643821302470,0.09886194,2669.3,2669.2,0.86211736]
[1643821303371,0.09886194,2669.3,2669.2,4.01211736]
[1643821304815,0.09886194,2669.3,2669.2,0.86211736]
[1643821306317,0.09886194,2669.3,2669.2,3.56211736]
[1643821307663,0.04886194,2669.3,2669.2,0.86211736]
[1643821308263,0.21077591,2669.7,2669.2,0.86211736]
[1643821308865,0.21077591,2669.7,2668.8,0.1872]
[1643821309063,0.21077591,2669.7,2668.7,1.1637]
[1643821309064,0.1872,2669.6,2668.7,1.1637]
[1643821309271,0.19025081,2669.6,2668.7,1.1637]
[1643821309864,0.19860075,2669.2,2668.9,0.80201428]
[1643821310465,0.19860075,2669.2,2668.9,0.68397698]
[1643821311119,0.00508615,2669.3,2668.9,0.68397698]
[1643821311322,0.1872,2669.6,2668.7,1.1637]
[1643821311518,0.1872,2669.7,2668.7,1.1637]
[1643821311719,0.00508622,2669.2,2668.7,1.1637]
[1643821312520,0.22017832,2669.0,2668.7,1.1637]
[1643821312819,0.22017832,2669.0,2668.9,0.91878402]
[1643821313321,0.1873,2669.6,2668.9,0.91878402]
[1643821314120,0.19235073,2669.2,2668.9,0.91878402]
[1643821314321,0.19235073,2669.2,2668.6,3.8506]
[1643821314526,0.19235073,2669.2,2668.6,0.1872]
[1643821314971,0.1872,2669.1,2668.3,5.1068]
[1643821315369,0.1872,2669.1,2668.8,0.0020548]
[1643821315567,0.20094969,2669.0,2668.8,0.0020548]
[1643821316168,0.20094969,2669.0,2668.3,4.74279785]
[1643821316570,0.1872,2669.2,2668.8,0.0020548]
[1643821316769,0.1872,2669.6,2668.8,0.0020548]
[1643821316969,0.1872,2669.8,2668.8,0.0020548]
[1643821317174,0.73952166,2669.7,2668.8,0.0020548]
[1643821317369,0.73952166,2669.7,2668.4,0.45]
[1643821317569,0.1872,2669.6,2668.4,0.45]
[1643821317771,0.82392937,2669.5,2669.2,0.00508654]
[1643821318071,1.01112937,2669.4,2669.2,0.00508654]
[1643821318269,0.82392937,2669.3,2669.2,0.00508654]
[1643821318518,1.00146095,2669.3,2669.2,0.00508654]
[1643821318721,1.00146095,2669.3,2668.5,0.912905]
[1643821318919,0.22124324,2668.7,2668.5,0.912905]
[1643821319119,0.25508565,2669.6,2668.5,0.912905]
[1643821319319,0.1873,2669.5,2668.5,0.912905]
[1643821319620,0.82436719,2669.4,2668.5,0.912905]
[1643821319824,0.1872,2669.3,2668.5,0.912905]
[1643821320020,0.22116925,2669.0,2668.9,0.00508677]
[1643821320222,0.82436719,2669.1,2668.9,0.00508677]
[1643821320526,0.82436719,2669.0,2668.9,0.00508677]
[1643821320720,0.82436719,2669.5,2668.9,0.00508677]
[1643821320920,0.82436719,2669.4,2668.9,0.00508677]
[1643821321118,0.82436719,2669.4,2668.7,0.45]
[1643821321320,0.19379071,2669.0,2668.8,0.00508681]
[1643821321524,0.00508525,2669.6,2668.8,0.00508681]
[1643821321719,0.82498781,2669.5,2668.8,0.00508681]
[1643821322379,0.82498781,2669.5,2668.7,0.45]
[1643821322380,0.20661256,2669.2,2668.7,0.45]
[1643821322572,0.20661256,2669.2,2669.0,0.00508665]
[1643821322573,0.82498781,2669.1,2669.0,0.00508665]
[1643821322971,0.82498781,2669.1,2669.0,0.73731921]
[1643821323172,0.82498781,2669.1,2669.0,6.83731921]
[1643821323370,1.13465951,2670.0,2669.0,6.83223256]
[1643821323371,0.82498781,2669.5,2669.0,6.83223256]
[1643821323570,0.82515371,2669.4,2669.0,6.83223256]
[1643821323770,0.8954948,2670.0,2669.1,2.17182795]
[1643821323771,0.82515371,2669.3,2669.1,2.17182795]
[1643821323971,0.00508536,2669.6,2669.2,0.45]
[1643821324171,0.82510332,2669.5,2669.2,0.45]
[1643821324572,0.00508536,2669.6,2669.2,0.45]
[1643821324772,0.82529747,2669.5,2669.2,0.45]
[1643821324977,0.82529747,2669.5,2669.2,0.4550865]
[1643821325173,0.0050857,2669.6,2669.2,0.4550865]
[1643821325374,0.0050857,2669.6,2669.3,2.25033377]
[1643821325573,0.0050857,2669.6,2669.4,0.45]
[1643821325874,0.1872,2670.2,2669.4,0.45]
[1643821325875,0.8249677,2669.5,2669.4,0.45]
[1643821326120,0.00448151,2669.6,2669.4,2.65]
[1643821326418,0.00448151,2669.6,2669.4,0.45]
[1643821326419,0.8249677,2669.5,2669.4,0.45]
[1643821326617,0.8249677,2669.5,2669.3,0.00448205]
[1643821326816,0.98992245,2669.5,2669.3,0.00448205]
[1643821327017,0.8249677,2669.4,2668.8,0.45]
[1643821327420,0.8249677,2669.4,2669.3,3.15448208]
[1643821327622,0.8249677,2669.5,2669.3,3.15448208]
[1643821328218,1.77625614,2669.5,2669.3,3.15]
[1643821328420,1.01250739,2669.4,2668.8,0.6372]
[1643821328619,0.95128844,2669.5,2668.7,3.9614]
[1643821328620,0.8249677,2669.3,2668.7,3.9614]
[1643821328818,0.8249677,2669.2,2668.7,0.1872]
[1643821329018,0.8249677,2669.1,2668.6,0.1872]
[1643821329219,0.95128844,2669.5,2668.6,0.1872]
[1643821329422,0.82518664,2669.4,2668.6,0.1872]
[1643821329867,0.82518664,2669.4,2668.7,0.00508688]
[1643821330071,0.2198928,2669.0,2668.7,0.00508688]
[1643821330271,0.1872,2669.5,2668.7,0.00508688]
[1643821330470,0.8253316,2669.4,2668.7,0.00508688]
[1643821330670,0.8253316,2669.4,2668.6,0.1872]
[1643821330870,0.7082948,2669.9,2668.6,0.1872]
[1643821330871,0.8253316,2669.3,2668.7,0.00508688]
[1643821331074,0.8253316,2669.2,2668.7,0.00508688]
[1643821331371,0.1764556,2669.1,2668.7,0.00508688]
[1643821331572,0.8165914,2669.5,2668.7,0.00508688]
[1643821331769,0.8259175,2669.4,2668.7,0.00508688]
[1643821331973,0.8259175,2669.4,2668.6,0.1872]
[1643821332169,0.8259175,2669.4,2668.8,0.00508685]
[1643821332570,0.21972334,2669.1,2668.8,0.00508685]
[1643821333269,0.21972334,2669.1,2668.8,0.00452489]
[1643821333523,0.0045235,2669.6,2668.9,1.18855811]
[1643821333715,0.0045235,2669.6,2669.0,2.32902033]
[1643821333716,0.82598323,2669.5,2669.0,2.32902033]
[1643821333915,0.82598323,2669.5,2668.9,0.1872]
[1643821334116,0.82598323,2669.5,2669.0,1.18824553]
[1643821334316,0.19213086,2669.3,2669.0,0.45]
[1643821334517,0.19213086,2669.3,2669.1,0.00195917]
[1643821334718,0.19213086,2669.3,2669.2,4.7]
[1643821335118,0.8073034,2669.7,2669.2,4.7]
[1643821335422,0.82625487,2669.6,2669.2,4.7]
[1643821336819,0.82625487,2669.6,2669.3,0.00192208]
[1643821337266,0.82625487,2669.6,2669.3,0.00049417]
[1643821337669,0.82625487,2669.5,2669.3,0.00049417]
[1643821337874,0.82625487,2669.5,2669.2,4.7]
[1643821337875,0.1872,2670.1,2669.2,4.7]
[1643821338078,0.82650162,2670.0,2669.2,4.7]
[1643821338370,1.01370162,2669.9,2669.2,4.7]
[1643821338570,0.89707781,2669.7,2669.2,4.7]
[1643821338771,0.82650162,2669.6,2669.2,4.7]
[1643821338971,0.82650162,2669.6,2669.2,0.45]
[1643821339174,0.82650162,2669.6,2669.0,0.1872]
[1643821339370,0.82650162,2669.6,2668.6,3.08444]
[1643821339371,0.82650162,2669.6,2668.7,0.6372]
[1643821339571,0.82650162,2669.6,2668.8,0.74012153]
[1643821339771,0.21987375,2668.9,2668.8,0.74012153]
[1643821339970,0.21987375,2668.9,2668.8,4.09012153]
[1643821340373,0.21987375,2668.9,2668.8,0.74012153]
[1643821340574,0.21987375,2668.9,2668.7,0.00205484]
[1643821340776,0.82767435,2668.8,2668.7,0.00205484]
[1643821341019,0.82767435,2668.8,2668.7,3.90205484]
[1643821341418,0.82767435,2668.8,2668.7,3.9]
[1643821342018,0.82767435,2668.8,2668.3,0.1872]
[1643821342219,2.82767435,2668.8,2668.1,0.1872]
[1643821342419,2.82767435,2668.8,2668.0,3.6997]
[1643821342420,0.82767435,2668.7,2668.2,0.72231617]
[1643821342618,0.82767435,2668.7,2668.0,3.6997]
[1643821342619,0.1872,2668.6,2668.0,3.6997]
[1643821342820,0.82767435,2668.5,2668.1,0.72173733]
[1643821343020,0.82767435,2668.5,2668.2,0.72173733]
[1643821343220,0.16342559,2668.4,2667.8,0.72173733]
[1643821343426,0.85048873,2668.3,2667.9,0.72173733]
[1643821343621,0.85048873,2668.3,2668.0,0.72173733]
[1643821343820,0.85048873,2668.3,2668.1,0.72173733]
[1643821344021,0.85048873,2668.3,2668.2,3.02173733]
[1643821344619,0.16342559,2668.4,2668.2,3.02173733]
[1643821344865,0.16342559,2668.4,2668.3,0.72173733]
[1643821345264,1.01373068,2668.4,2668.3,2.4]
[1643821345463,1.01373068,2668.4,2668.3,3.12173733]
[1643821348718,1.01373068,2668.4,2668.3,2.4]
[1643821348914,1.01373068,2668.4,2668.3,3.12135989]
[1643821349320,1.01373068,2668.4,2668.3,2.4]
[1643821349717,1.01373068,2668.4,2668.2,0.00508409]
[1643821349916,0.85030509,2668.3,2667.7,0.1872]
[1643821350117,0.85030509,2668.3,2668.2,0.00508409]
[1643821350324,0.85030509,2668.3,2667.3,0.1873]
[1643821350325,5.6,2668.1,2667.3,0.1873]
[1643821350520,5.6,2668.1,2666.3,0.69737772]
[1643821350521,0.99999999,2667.6,2666.3,0.69737772]
[1643821350717,0.71106263,2667.7,2666.6,0.1874]
[1643821350718,0.73899069,2667.1,2666.6,0.1874]
[1643821350920,0.73899069,2667.1,2666.3,0.69737772]
[1643821350921,0.93772,2667.1,2666.3,0.69737772]
[1643821351122,1.87554,2667.4,2666.4,0.69737772]
[1643821351323,1.87554,2667.4,2666.3,0.69737772]
[1643821351817,0.71054921,2667.1,2666.3,0.69737772]
[1643821352865,0.93766,2667.2,2666.3,0.69737772]
[1643821353069,0.93766,2667.2,2666.4,0.1874]
[1643821353266,0.16550387,2666.7,2666.3,0.1874]
[1643821353667,0.22439043,2666.8,2666.4,5.3]
[1643821353870,0.22439043,2666.8,2666.7,2.65203952]
[1643821354767,0.22439043,2666.8,2666.7,2.65]
[1643821354968,0.12837387,2667.2,2666.7,2.65]
[1643821356022,0.17050646,2667.0,2666.7,2.65]
[1643821356220,0.12837387,2667.2,2666.8,0.00509222]
[1643821357021,0.12837387,2667.2,2666.7,2.65]
[1643821357222,0.12837387,2667.2,2666.3,0.1874]
[1643821357422,0.17894628,2667.1,2666.9,0.00509218]
[1643821357623,0.17894628,2667.1,2666.3,0.1874]
[1643821357624,0.17894628,2667.1,2666.3,0.16286395]
[1643821358224,0.12837387,2667.2,2666.4,0.18683]
[1643821358622,0.12837387,2667.2,2666.3,0.16286395]
[1643821359029,0.12837387,2667.2,2666.3,1.16286395]
[1643821359425,0.17916586,2666.9,2666.3,1.16286395]
[1643821359626,0.85165857,2666.9,2666.3,1.16286395]
[1643821359869,0.85458679,2666.9,2666.3,1.16286395]
[1643821360068,0.00292822,2666.9,2666.3,0.16286395]
[1643821360667,0.12837387,2667.2,2666.3,0.16286395]
[1643821361068,0.00292822,2666.7,2666.4,0.18683]
[1643821361677,0.00292822,2666.7,2666.6,5.83683]
[1643821361874,0.1875,2667.7,2666.6,7.58683]
[1643821362271,0.1875,2667.7,2666.7,1.937453]
[1643821362470,0.15900804,2667.6,2666.7,1.387453]
[1643821362670,0.15900804,2667.6,2666.8,3.2542]
[1643821362869,0.15900804,2667.6,2666.8,7.2193]
[1643821363070,0.1874,2667.5,2666.6,2.18529026]
[1643821363369,0.1874,2667.5,2666.6,0.1874]
[1643821363622,0.00509152,2667.3,2666.6,0.1874]
[1643821363824,0.00509152,2667.3,2666.7,1.1243]
[1643821364021,0.00509152,2667.3,2666.7,0.93747]
[1643821364225,0.00509152,2667.3,2666.6,0.1874]
[1643821364422,0.1874,2667.6,2666.6,0.1874]
[1643821364622,0.00509167,2667.1,2666.6,0.1874]
[1643821364823,0.00509167,2667.1,2666.6,0.34886237]
[1643821365533,0.94275737,2667.6,2666.6,0.34886237]
[1643821365826,0.00509178,2667.0,2666.6,0.34886237]
[1643821366323,0.00509178,2667.0,2666.6,0.3508572]
[1643821366727,0.1874,2667.5,2666.6,0.3508572]
[1643821366728,0.1874,2667.5,2666.6,0.18939483]
[1643821366926,0.00509182,2666.9,2666.7,0.00199483]
[1643821367575,0.00509182,2666.9,2666.4,0.00708773]
[1643821367877,0.1875,2666.8,2666.4,0.00199483]
[1643821368074,0.1875,2666.8,2666.2,0.00199483]
[1643821368275,0.00509193,2666.8,2666.4,0.00509273]
[1643821369279,0.93781,2666.9,2666.2,0.00199483]
[1643821369476,0.00509197,2666.7,2666.4,0.00509267]
[1643821369677,0.00509197,2666.7,2665.3,0.69737772]
[1643821369678,6.66268232,2666.5,2665.3,0.69737772]
[1643821369878,6.66268232,2666.5,2665.2,0.76058548]
[1643821369879,0.93809,2666.2,2665.2,0.1875]
[1643821370080,0.93809,2666.2,2665.4,0.04320018]
[1643821370276,0.1875,2666.1,2665.4,0.04320018]
[1643821370476,0.1875,2666.1,2665.1,0.23240545]
[1643821370677,0.1875,2666.1,2665.5,0.18104079]
[1643821370876,0.1875,2666.1,2665.5,1.12132548]
[1643821371121,0.1875,2666.4,2665.6,0.04206334]
[1643821371623,2.1875,2667.0,2665.6,0.22889334]
[1643821371824,2.1875,2667.0,2665.7,5.0009]
[1643821371825,0.1875,2667.0,2665.7,5.0009]
[1643821372024,0.93777,2666.9,2665.7,5.04239491]
[1643821372222,0.93777,2666.9,2665.9,0.92788064]
[1643821372423,0.1875,2666.8,2665.9,0.92788064]
[1643821372722,0.1875,2666.8,2665.8,0.22842649]
[1643821372922,0.39301004,2666.8,2665.8,0.44492349]
[1643821373122,0.39301004,2666.8,2665.9,0.04035806]
[1643821374023,0.1875,2666.8,2665.9,0.04035806]
[1643821374222,0.93777,2666.9,2666.0,0.78375193]
[1643821374428,2.761e-05,2666.5,2666.1,0.18683]
[1643821374627,0.02049691,2668.2,2666.5,0.01239393]
[1643821374628,2.1875,2667.9,2666.5,0.01239393]
[1643821374893,2.1875,2667.9,2667.3,0.1812623]
[1643821374894,3.6875,2667.9,2667.3,0.1812623]
[1643821375079,0.1875,2667.9,2667.3,0.1812623]
[1643821375278,6.3055,2668.6,2667.3,0.1812623]
[1643821375279,0.1874,2668.1,2667.3,0.1812623]
[1643821375478,2.0,2668.5,2667.3,0.1812623]
[1643821375479,0.1874,2668.4,2667.3,0.1812623]
[1643821375679,0.94503778,2668.3,2667.3,0.1812623]
[1643821375879,0.1874,2668.2,2667.3,0.1812623]
[1643821376279,0.1874,2668.3,2667.3,1.1185023]
[1643821376481,0.1874,2668.4,2667.9,0.84379447]
[1643821376684,1.75712778,2669.3,2667.9,0.84379447]
[1643821376685,0.1872,2668.9,2667.9,0.86352165]
[1643821376880,1.53102041,2669.3,2667.9,0.86352165]
[1643821376881,1.01728401,2668.8,2667.9,0.86352165]
[1643821377084,0.1872,2669.2,2667.9,1.14379447]
[1643821377281,0.21089303,2668.9,2668.2,0.9369]
[1643821377481,0.1872,2669.2,2668.2,0.9369]
[1643821377683,1.01740867,2669.1,2668.4,0.9367898]
[1643821377881,0.89826263,2669.7,2668.4,0.9367898]
[1643821378083,0.00312938,2668.7,2668.4,0.9367898]
[1643821378527,0.00312938,2668.7,2668.4,1.93084454]
[1643821378825,0.00312938,2668.7,2668.6,5.83683]
[1643821379226,0.00512596,2668.7,2668.6,6.83683]
[1643821379423,0.00512596,2668.7,2668.6,7.37683]
[1643821379926,0.00512596,2668.7,2668.6,8.9998171]
[1643821380125,0.1872,2669.9,2668.6,9.1870171]
[1643821380325,0.00512588,2668.8,2668.7,5.3872]
[1643821380924,0.00512588,2668.8,2668.7,5.57403]
[1643821381126,0.02050045,2669.2,2668.7,6.87403]
[1643821381326,1.8280403,2670.1,2668.8,1.0]
[1643821381327,0.1872,2669.9,2668.8,1.0]
[1643821381525,0.00512581,2668.9,2668.8,1.0]
[1643821381927,2.581e-05,2668.9,2668.8,1.18683]
[1643821382128,0.1872,2670.0,2668.8,1.18683]
[1643821382129,0.1872,2670.0,2668.9,5.67103031]
[1643821382385,0.1873,2670.7,2670.1,0.83186994]
[1643821382677,0.1873,2670.7,2669.5,8.49681392]
[1643821382678,1.01899647,2670.6,2670.2,0.54]
[1643821383074,0.1872,2671.1,2670.2,0.84]
[1643821383277,0.7041303,2671.3,2670.3,0.18683]
[1643821383278,1.01781335,2671.0,2670.3,0.18683]
[1643821383476,0.9388404,2671.5,2670.5,0.2179139]
[1643821383477,1.01781335,2670.9,2670.5,0.2179139]
[1643821383675,0.8913303,2671.4,2670.5,0.2179139]
[1643821383676,1.01781335,2670.8,2670.5,0.2179139]
[1643821383876,0.8913303,2671.4,2670.5,0.2179139]
[1643821383877,1.01828712,2670.7,2670.5,0.9447439]
[1643821384077,0.8913303,2671.4,2670.6,5.41334455]
[1643821384276,1.01689871,2671.3,2670.7,1.0]
[1643821384675,1.01689871,2671.3,2670.6,5.71334455]
[1643821384676,1.01689871,2671.3,2670.5,0.54]
[1643821384881,1.20409871,2671.4,2670.3,0.1872]
[1643821385076,1.01689871,2671.3,2670.3,0.1872]
[1643821385274,1.01689871,2671.3,2669.9,3.0464]
[1643821385275,1.20409871,2671.3,2669.9,2.0464]
[1643821385474,1.20409871,2671.3,2670.0,0.37403]
[1643821385475,1.01689871,2671.2,2670.0,0.37403]
[1643821385676,0.9388404,2671.8,2670.5,0.15836304]
[1643821385677,1.20409871,2671.1,2670.5,0.15836304]
[1643821385876,1.01689871,2671.0,2670.5,0.15836304]
[1643821386115,0.7041303,2671.6,2670.5,0.15836304]
[1643821386320,1.19795615,2671.5,2670.5,0.15836304]
[1643821386520,0.00473321,2670.9,2670.5,0.15836304]
[1643821387317,0.1872,2671.2,2670.5,0.88519304]
[1643821387521,0.0048932,2670.8,2670.5,0.88519304]
[1643821387718,0.0048932,2670.8,2670.7,5.83683]
[1643821387919,9.32e-05,2670.8,2670.7,7.31274]
[1643821388219,0.01956985,2671.2,2670.7,12.10603592]
[1643821388419,0.187,2672.0,2670.8,5.67340778]
[1643821388622,0.187,2672.4,2670.9,3.20659114]
[1643821388818,1.208,2673.1,2671.2,0.0376206]
[1643821388819,1.01187632,2672.3,2671.2,0.0376206]
[1643821389020,0.7041303,2673.0,2671.3,0.82383]
[1643821389021,0.187,2672.9,2671.3,0.82383]
[1643821389221,1.01035588,2672.8,2671.7,0.73306327]
[1643821389420,0.187,2672.7,2671.7,0.94430124]
[1643821389879,0.187,2672.7,2671.3,1.93683]
[1643821389880,0.187,2672.7,2671.3,0.187]
[1643821390084,1.12293,2672.7,2671.3,0.45]
[1643821390681,1.12293,2672.7,2671.3,0.93683]
[1643821390887,0.187,2672.7,2671.4,2.30627802]
[1643821391180,0.00513567,2672.1,2671.3,0.45]
[1643821391580,0.187,2672.0,2671.3,0.45]
[1643821391781,0.187,2672.0,2671.6,0.18222441]
[1643821392382,0.187,2672.6,2671.6,0.18222441]
[1643821392586,0.00465977,2671.8,2671.6,0.18222441]
[1643821392784,0.00465977,2671.8,2671.3,0.45]
[1643821392987,0.00465977,2671.8,2670.9,0.45]
[1643821393664,0.187,2672.1,2671.6,0.16020865]
[1643821393851,0.187,2672.6,2671.6,0.45]
[1643821394150,0.93594,2672.6,2671.5,0.91863358]
[1643821394348,0.187,2672.5,2671.5,0.91863358]
[1643821394549,2.05,2672.4,2670.9,1.37416]
[1643821394750,0.187,2672.3,2671.0,0.45]
[1643821394948,0.187,2672.3,2671.1,0.187]
[1643821394949,0.35453732,2672.3,2671.1,0.187]
[1643821395153,0.35453732,2672.3,2671.2,0.45]
[1643821395550,0.187,2672.3,2671.2,0.45]
[1643821395951,0.187,2672.3,2671.2,0.63706]
[1643821396151,0.187,2672.3,2671.2,0.45]
[1643821396454,0.22491412,2671.9,2671.2,0.45]
[1643821396853,0.22491412,2671.9,2671.0,0.18904477]
[1643821396854,0.18708,2671.8,2671.0,0.18904477]
[1643821397055,0.187,2671.8,2671.0,0.187]
[1643821397273,1.005136,2671.7,2671.0,0.00513739]
[1643821397475,0.37408,2671.6,2671.0,0.00513739]
[1643821397682,0.99999999,2671.5,2671.0,0.00513739]
[1643821397875,0.187,2671.4,2671.0,0.00513739]
[1643821398175,0.2135777,2671.3,2670.4,0.66917751]
[1643821398375,0.1872,2671.2,2670.4,0.66917751]
[1643821398878,0.19029529,2671.4,2670.4,0.66917751]
[1643821399074,0.00309529,2671.4,2670.4,0.85637751]
[1643821399474,0.1872,2671.8,2670.5,0.45]
[1643821399674,0.1872,2671.8,2670.6,0.38678875]
[1643821399675,0.00309499,2671.3,2670.6,0.38678875]
[1643821399873,0.00309499,2671.3,2670.6,0.187]
[1643821400676,0.1729712,2671.6,2670.6,0.187]
[1643821401027,0.00513097,2671.3,2670.8,0.00513188]
[1643821401220,0.00513097,2671.3,2670.9,0.87207612]
[1643821401422,0.00513097,2671.3,2671.0,0.18706]
[1643821401621,0.00513097,2671.3,2671.1,0.187]
[1643821401821,0.00513097,2671.3,2671.2,6.1]
[1643821402219,0.187,2672.5,2671.2,7.55780854]
[1643821402220,0.17602072,2672.2,2671.2,7.55780854]
[1643821402419,0.004729,2671.3,2671.2,7.55780854]
[1643821402618,0.004729,2671.3,2671.2,7.58706]
[1643821403118,0.17602072,2672.2,2671.2,7.58706]
[1643821403320,0.187,2672.7,2671.2,1.93706]
[1643821403519,0.00472894,2671.4,2671.2,1.93706]
[1643821403717,0.00472894,2671.4,2671.3,5.53706]
[1643821403919,0.00472894,2671.4,2671.3,9.42677621]
[1643821404118,0.00472894,2671.4,2671.3,7.47406]
[1643821404318,0.01891211,2671.9,2671.3,7.47406]
[1643821404319,0.17180559,2672.5,2671.3,7.59609001]
[1643821404520,0.17180559,2672.5,2671.8,0.91103351]
[1643821404773,0.01891257,2671.9,2671.8,0.45]
[1643821405478,0.17180559,2672.5,2671.8,0.45]
[1643821405675,0.187,2672.4,2671.8,0.45]
[1643821405874,0.00458865,2672.0,2671.8,0.45]
[1643821406674,0.20535185,2672.4,2671.8,0.45]
[1643821406675,0.187,2672.4,2671.8,0.45]
[1643821406879,0.187,2672.5,2671.8,0.75]
[1643821407177,0.00464741,2672.0,2671.9,5.65]
[1643821407374,0.00464741,2672.0,2671.9,7.1]
[1643821407576,0.00464741,2672.0,2671.9,6.1]
[1643821408275,0.00464738,2672.1,2671.9,6.1]
[1643821408918,0.00464738,2672.1,2671.9,6.4]
[1643821409121,0.187,2673.0,2671.9,6.4]
[1643821409319,0.00432136,2672.1,2671.9,6.4]
[1643821409918,0.00432136,2672.1,2671.9,6.1]
[1643821410319,0.187,2673.0,2672.1,0.79505016]
[1643821410519,0.01726727,2672.5,2672.1,0.79505016]
[1643821410919,0.01726727,2672.5,2671.9,0.45]
[1643821411620,0.37408,2673.0,2672.3,0.18626809]
[1643821411822,0.01726677,2672.7,2672.1,0.18706]
[1643821412021,0.01726677,2672.7,2672.6,0.90233944]
[1643821412670,0.187,2673.0,2672.6,0.90233944]
[1643821413171,0.00310107,2672.8,2672.6,0.90233944]
[1643821413971,0.187,2673.1,2672.6,0.90233944]
[1643821414172,0.00480027,2672.8,2672.6,0.90233944]
[1643821414670,0.00480027,2672.8,2672.2,0.187]
[1643821414872,0.00480027,2672.8,2672.5,0.61754935]
[1643821415074,0.187,2673.5,2672.6,0.68595086]
[1643821415272,0.94960457,2673.4,2672.6,0.68595086]
[1643821415473,0.01919872,2673.0,2672.6,0.68595086]
[1643821415672,0.01919872,2673.0,2672.5,0.75]
[1643821416323,0.187,2673.5,2672.5,0.75]
[1643821416523,0.9495801,2673.4,2672.5,0.75]
[1643821416725,0.00480024,2672.9,2672.5,0.75]
[1643821417424,0.00480024,2672.9,2672.7,0.20572561]
[1643821417623,0.00480024,2672.9,2672.8,3.46794063]
[1643821417824,0.01912513,2673.2,2672.8,3.76794063]
[1643821418624,0.63131397,2673.6,2672.9,5.65]
[1643821418827,0.187,2673.8,2673.0,0.45]
[1643821418828,0.98018357,2673.5,2673.0,0.45]
[1643821419027,0.98018357,2673.4,2673.1,0.37406]
[1643821419226,0.01912437,2673.5,2673.2,0.45]
[1643821419428,0.01912437,2673.5,2673.3,0.36569634]
[1643821419625,0.01912437,2673.5,2673.4,4.90061233]
[1643821419873,1.0803518,2673.9,2673.4,4.90061233]
[1643821420076,1.0803518,2673.9,2673.4,5.20061233]
[1643821420273,0.00310496,2673.5,2673.4,1.55061233]
[1643821420675,0.00310496,2673.5,2673.4,0.45]
[1643821421175,1.7844821,2673.9,2673.4,0.45]
[1643821421378,0.0048382,2673.6,2673.4,0.45]
[1643821421575,0.0048382,2673.6,2673.4,1.27409917]
[1643821422374,0.7041303,2673.8,2673.4,1.49151042]